bitfinex/quotes_ETHUSD_20240822
["timestamp","ask_amount","ask_price","bid_price","bid_amount"]
[1724313747842,3.78431,2642.5,2641.8,3.0]
[1724313748566,3.78445,2642.4,2641.8,3.0]
[1724313751169,3.7843,2642.5,2641.8,3.0]
[1724313751368,1.52642465,2642.4,2641.8,3.0]
[1724313751558,5.31086465,2642.4,2641.8,3.0]
[1724313753290,9.09543465,2642.4,2641.8,3.0]
[1724313753485,9.09540465,2642.4,2641.8,3.0]
[1724313753686,3.78459,2642.3,2641.8,3.0]
[1724313753997,0.53110147,2642.2,2641.8,3.0]
[1724313754808,9.3246,2642.3,2641.4,9.9137]
[1724313755107,7.56992,2642.1,2641.5,3.0]
[1724313755568,7.56994,2642.1,2641.5,3.0]
[1724313755779,9.3246,2642.3,2641.5,3.0]
[1724313755780,0.756994,2642.0,2641.5,3.0]
[1724313755956,20.4092,2642.3,2641.5,3.0]
[1724313756357,7.3,2642.3,2641.5,3.0]
[1724313757300,11.08461,2642.3,2641.5,3.0]
[1724313757490,12.72416547,2642.3,2641.5,3.0]
[1724313759188,7.3,2642.3,2641.6,9.0879]
[1724313759580,11.08461,2642.3,2641.6,9.0879]
[1724313759923,7.3,2642.3,2641.6,9.0879]
[1724313761023,11.08458,2642.3,2641.6,9.0879]
[1724313761223,5.42427247,2642.2,2641.6,9.0879]
[1724313761538,3.78509,2642.0,2641.5,3.0]
[1724313761822,3.78521,2641.9,2641.3,9.1821]
[1724313762132,4.54224,2641.9,2641.4,3.0]
[1724313763206,0.75703,2641.9,2641.4,3.0]
[1724313763412,3.78509,2642.0,2641.4,3.0]
[1724313764019,14.53895247,2642.2,2641.4,3.0]
[1724313764327,11.08464,2642.3,2641.5,9.7704]
[1724313764483,11.08464,2642.3,2641.6,3.0]
[1724313765203,7.3,2642.3,2641.6,3.0]
[1724313765628,7.3,2642.3,2641.6,4.27704]
[1724313767749,1.52642465,2642.4,2641.6,4.27704]
[1724313767947,5.31088465,2642.4,2641.6,4.27704]
[1724313768356,5.31088465,2642.4,2641.6,3.0]
[1724313769028,0.00647189,2641.9,2641.6,3.0]
[1724313782172,0.00647189,2641.9,2641.4,3.0]
[1724313782952,3.79164189,2641.9,2641.4,3.0]
[1724313783164,0.75766519,2641.8,2641.4,3.0]
[1724313785447,0.00647189,2641.9,2641.4,3.0]
[1724313788564,0.00647189,2641.9,2641.5,9.1937]
[1724313788875,0.00647189,2641.9,2641.6,3.0]
[1724313796846,1.289,2641.7,2641.6,3.0]
[1724313797049,1.289,2641.7,2641.3,3.0]
[1724313797269,0.507438,2641.6,2641.3,3.0]
[1724313797582,1.289,2641.7,2641.3,3.0]
[1724313797803,3.78532,2641.8,2641.3,3.0]
[1724313798084,5.08062189,2641.9,2641.3,3.0]
[1724313798251,1.52035119,2641.8,2641.3,3.0]
[1724313799587,5.30564119,2641.8,2641.3,3.0]
[1724313799812,1.52035119,2641.8,2641.3,3.0]
[1724313800460,5.30565119,2641.8,2641.3,3.0]
[1724313800840,1.03862731,2641.7,2641.3,3.0]
[1724313800946,2.32762731,2641.7,2641.1,4.97445075]
[1724313801284,8.9731,2641.6,2641.1,4.97445075]
[1724313801607,8.9731,2641.6,2641.1,3.0]
[1724313801794,1.13007273,2641.5,2641.1,3.0]
[1724313802420,1.03862731,2641.7,2641.2,4.5796799]
[1724313802546,9.07487189,2641.9,2641.3,3.0]
[1724313803262,9.07487189,2641.9,2641.2,6.26337446]
[1724313803462,9.07487189,2641.9,2641.2,4.289]
[1724313803647,9.07487189,2641.9,2641.2,6.26337446]
[1724313804307,0.96248719,2641.8,2641.2,6.26337446]
[1724313804650,0.96248719,2641.8,2641.2,3.0]
[1724313804883,0.96248719,2641.8,2641.1,4.97440886]
[1724313805078,0.96248719,2641.8,2641.2,1.3162875]
[1724313805251,0.96248719,2641.8,2641.2,3.0]
[1724313805591,1.13263591,2641.7,2641.2,3.0]
[1724313805753,1.13263591,2641.7,2641.1,4.97439084]
[1724313805952,2.42163591,2641.7,2641.1,4.97439084]
[1724313806153,2.42163591,2641.7,2641.1,3.0]
[1724313806347,1.289,2641.3,2640.8,0.78842556]
[1724313806647,10.4134,2641.5,2640.9,1.31640277]
[1724313806886,10.4134,2641.5,2640.8,1.9746313]
[1724313807086,7.63841231,2641.6,2640.9,3.29103595]
[1724313807288,7.63841231,2641.6,2640.8,4.71568082]
[1724313807590,7.63841231,2641.6,2640.9,4.3163781]
[1724313807895,7.63841231,2641.6,2640.9,3.0]
[1724313808047,1.87449482,2641.5,2640.9,4.9746313]
[1724313808250,1.87449482,2641.5,2640.9,3.0]
[1724313809532,3.16349482,2641.5,2640.9,3.0]
[1724313810201,3.16349482,2641.5,2640.8,3.0]
[1724313810400,1.45876271,2641.4,2640.8,3.0]
[1724313810601,8.796,2641.3,2640.8,3.0]
[1724313811019,10.085,2641.3,2640.6,6.26368719]
[1724313811219,1.15437627,2641.2,2640.6,6.26368719]
[1724313811927,1.15437627,2641.2,2640.6,3.0]
[1724313813033,1.15437627,2641.2,2640.5,9.1562]
[1724313813194,1.15437627,2641.2,2640.6,1.289]
[1724313813542,1.45876271,2641.4,2640.8,1.289]
[1724313813715,1.45876271,2641.4,2640.6,1.289]
[1724313813916,0.27477627,2641.3,2640.6,1.289]
[1724313814104,0.00647189,2640.8,2640.6,4.289]
[1724313815189,0.00647189,2640.8,2640.6,3.0]
[1724313815790,0.00647189,2640.8,2640.6,4.289]
[1724313816031,0.00647189,2640.8,2640.7,8.6672]
[1724313816235,0.00647189,2640.8,2640.7,12.98357591]
[1724313816832,0.00647189,2640.8,2640.7,11.6672]
[1724313817536,0.00647189,2640.8,2640.7,3.0]
[1724313817842,0.00647189,2640.8,2640.5,3.0]
[1724313818335,0.00647189,2640.8,2640.2,4.97493392]
[1724313818336,0.90360908,2640.8,2640.2,4.97493392]
[1724313818897,0.90360908,2640.8,2640.2,3.0]
[1724313820521,8.6958,2640.7,2640.2,3.0]
[1724313820736,8.6958,2640.7,2639.9,4.97503939]
[1724313820947,8.6958,2640.7,2639.9,3.0]
[1724313822342,12.48267,2640.7,2639.9,3.0]
[1724313822531,8.6958,2640.7,2639.9,3.0]
[1724313822842,1.62758819,2640.6,2639.9,3.0]
[1724313823243,3.78687,2640.7,2639.6,0.78842556]
[1724313823244,9.0468,2640.5,2639.6,12.0462]
[1724313823540,9.0468,2640.5,2639.7,1.78032215]
[1724313823741,0.90468,2640.4,2639.7,3.46352035]
[1724313823918,0.90468,2640.4,2639.7,3.0]
[1724313824551,8.5562,2640.3,2639.6,3.0]
[1724313824752,1.32482,2640.2,2639.6,3.0]
[1724313824968,1.32482,2640.2,2639.3,9.1283]
[1724313825562,9.1566,2640.1,2639.3,9.1283]
[1724313825939,9.1275,2640.0,2639.1,18.7833329]
[1724313826277,12.91546,2640.0,2639.1,9.29762035]
[1724313826450,11.660288,2640.0,2639.2,0.46352035]
[1724313827449,11.660288,2640.0,2639.2,3.0]
[1724313828850,0.00647189,2639.5,2639.2,3.0]
[1724313832775,0.00647189,2639.5,2639.0,3.0]
[1724313832954,0.00647189,2639.5,2639.0,4.71208656]
[1724313833660,8.64247189,2639.5,2639.0,4.71208656]
[1724313833869,8.64247189,2639.5,2638.9,3.0]
[1724313836920,0.00647189,2639.5,2638.9,3.89527564]
[1724313837260,0.00647189,2639.5,2639.1,8.9341]
[1724313837606,0.00647189,2639.5,2639.2,3.07576886]
[1724313838486,0.00647189,2639.5,2639.2,3.0]
[1724313838803,0.00647189,2639.5,2639.0,3.43175529]
[1724313838983,0.00647189,2639.5,2639.0,4.58763353]
[1724313839790,0.00647189,2639.5,2639.0,3.0]
[1724313840086,0.00647189,2639.5,2638.9,3.0]
[1724313840519,8.3168,2639.4,2638.9,3.0]
[1724313842493,0.00647189,2639.5,2638.9,3.0]
[1724313842824,0.00647189,2639.5,2638.9,4.058459]
[1724313845210,0.00647189,2639.5,2638.9,3.0]
[1724313845410,0.00647189,2639.5,2638.5,3.095]
[1724313845411,8.4073,2639.4,2638.5,3.095]
[1724313845611,8.4073,2639.4,2638.5,7.31676529]
[1724313845826,8.4073,2639.4,2638.6,1.65405653]
[1724313846007,8.4073,2639.4,2638.5,7.31676529]
[1724313846209,8.4073,2639.4,2638.5,0.43175529]
[1724313846613,8.5869,2639.3,2638.4,0.7]
[1724313846929,8.5869,2639.3,2638.2,15.74855]
[1724313847531,8.5869,2639.3,2638.3,3.0]
[1724313847729,8.9643,2639.1,2638.3,3.0]
[1724313848742,8.9643,2639.1,2638.0,16.60222]
[1724313849063,8.9643,2639.1,2638.0,9.48442035]
[1724313849218,8.9643,2639.1,2638.1,0.46352035]
[1724313849412,8.5731,2638.9,2638.1,0.46352035]
[1724313850230,8.5731,2638.9,2638.1,4.25852035]
[1724313850580,8.5964,2639.2,2638.4,11.9874]
[1724313850757,8.5964,2639.2,2638.5,3.0]
[1724313851071,8.5964,2639.2,2638.6,0.07578703]
[1724313851366,10.18604,2639.2,2638.5,3.0]
[1724313853069,9.0448,2639.1,2638.5,3.0]
[1724313853255,9.0448,2639.1,2637.9,8.9229]
[1724313853256,9.0448,2639.0,2638.0,3.0]
[1724313853456,12.83411,2639.0,2638.0,3.89527564]
[1724313853767,12.83411,2639.0,2638.1,0.50755526]
[1724313853975,12.83411,2639.0,2638.1,0.43175529]
[1724313854691,1.283411,2638.9,2638.1,0.46352035]
[1724313855268,1.283411,2638.9,2638.0,3.0]
[1724313855470,3.78971,2638.8,2638.0,3.0]
[1724313855683,3.78971,2638.8,2637.6,3.0]
[1724313855684,9.5521121,2638.7,2637.6,3.0]
[1724313856254,8.3544,2638.6,2637.6,3.0]
[1724313856585,8.3544,2638.6,2637.7,3.0192]
[1724313856879,8.3544,2638.6,2637.8,3.67192]
[1724313857186,8.3452221,2638.6,2637.8,7.46295]
[1724313857642,8.3452221,2638.6,2637.8,3.67192]
[1724313858359,8.3452221,2638.6,2637.9,8.8952]
[1724313858579,8.3452221,2638.6,2638.0,3.07580104]
[1724313859047,0.00647189,2638.4,2638.0,3.07580104]
[1724313860097,0.00647189,2638.4,2638.0,3.0]
[1724313865392,0.00647189,2638.4,2638.0,6.79073]
[1724313865603,0.00647189,2638.4,2638.1,3.79058]
[1724313865809,0.00647189,2638.4,2638.2,3.988558]
[1724313866475,0.00647189,2638.4,2638.3,1.292]
[1724313867295,8.43117189,2638.4,2638.1,1.292]
[1724313867616,0.84311719,2638.3,2638.1,1.292]
[1724313868601,0.84311719,2638.3,2637.8,3.0]
[1724313870739,0.84311719,2638.3,2637.9,0.07580868]
[1724313870916,0.84311719,2638.3,2637.8,3.0]
[1724313870917,8.43117189,2638.4,2637.8,3.0]
[1724313872018,8.43117189,2638.4,2637.7,3.0]
[1724313877517,8.43117189,2638.4,2637.5,3.0]
[1724313877706,9.33811719,2638.3,2637.5,3.0]
[1724313878535,9.33811719,2638.3,2637.5,6.79146]
[1724313878741,8.495,2638.3,2637.6,9.9356085]
[1724313878920,8.495,2638.3,2637.7,9.89216]
[1724313879523,8.495,2638.3,2637.8,0.07580798]
[1724313879742,8.495,2638.3,2637.7,9.89216]
[1724313879903,8.495,2638.3,2637.7,12.20114456]
[1724313881670,8.495,2638.3,2637.7,8.40998456]
[1724313881972,8.495,2638.3,2637.7,6.101]
[1724313884948,0.00647189,2638.4,2637.8,13.52991365]
[1724313885157,0.00647189,2638.4,2637.9,3.0]
[1724313886452,0.00647189,2638.4,2638.0,8.20931184]
[1724313886651,0.00647189,2638.4,2638.1,3.0]
[1724313886965,0.00647189,2638.4,2638.1,4.289167]
[1724313887850,0.00647189,2638.4,2638.1,3.0]
[1724313888358,9.10257189,2638.4,2638.1,3.0]
[1724313888560,9.10257189,2638.4,2638.3,1.292]
[1724313890345,9.10257189,2638.4,2638.1,1.292]
[1724313890557,10.01282908,2638.4,2638.1,1.292]
[1724313894085,10.01282908,2638.4,2638.1,4.292]
[1724313894588,10.01282908,2638.4,2638.2,1.31773907]
[1724313894885,10.01282908,2638.4,2638.2,3.0]
[1724313895243,10.01282908,2638.4,2638.1,4.292]
[1724313895645,10.01282908,2638.4,2638.3,1.292]
[1724313895883,9.10257189,2638.4,2638.3,4.292]
[1724313896178,9.10257189,2638.4,2638.3,1.292]
[1724313896380,0.00647189,2638.4,2638.3,1.292]
[1724313897649,0.00647189,2638.4,2638.3,5.60966749]
[1724313897846,0.00647189,2638.4,2638.3,2.60966749]
[1724313898054,8.26017189,2638.4,2638.3,4.31766749]
[1724313898252,9.08618908,2638.4,2638.3,3.0]
[1724313898470,9.08618908,2638.4,2638.2,1.292]
[1724313898471,9.08618908,2638.4,2638.2,4.292]
[1724313898671,9.08618908,2638.4,2638.2,3.26854373]
[1724313898895,9.08618908,2638.4,2638.3,3.0]
[1724313899351,9.08618908,2638.4,2638.2,4.292]
[1724313899550,9.08618908,2638.4,2638.3,3.0]
[1724313899804,9.08618908,2638.4,2638.3,1.31772281]
[1724313900000,9.08618908,2638.4,2638.3,4.31772281]
[1724313900403,9.08618908,2638.4,2638.3,4.31770374]
[1724313900586,9.08618908,2638.4,2638.3,4.31773815]
[1724313900892,9.08618908,2638.4,2638.3,3.0]
[1724313901053,9.08618908,2638.4,2638.2,3.0]
[1724313901390,9.08618908,2638.4,2638.1,4.97654373]
[1724313901567,8.26017189,2638.4,2638.2,4.58629689]
[1724313901891,8.26017189,2638.4,2638.3,3.0]
[1724313902096,0.00647189,2638.4,2638.2,4.292]
[1724313902313,0.00647189,2638.4,2638.3,1.31768037]
[1724313902619,0.00647189,2638.4,2638.3,4.31768037]
[1724313905268,0.00647189,2638.4,2638.3,3.0]
[1724313905473,8.2408,2638.3,2638.2,4.292]
[1724313905724,8.2408,2638.3,2638.2,5.60970834]
[1724313906241,9.06552719,2638.3,2638.2,5.60970834]
[1724313906410,9.06552719,2638.3,2638.2,5.60973075]
[1724313906573,9.06552719,2638.3,2638.2,4.292]
[1724313906771,9.06552719,2638.3,2638.2,2.60974522]
[1724313906972,9.06552719,2638.3,2638.2,5.60974522]
[1724313908834,9.06552719,2638.3,2638.2,3.0]
[1724313909111,9.06552719,2638.3,2638.1,3.0]
[1724313909311,9.06552719,2638.3,2638.0,1.292]
[1724313909868,8.2408,2638.3,2638.1,1.31782612]
[1724313910103,8.2408,2638.3,2638.2,1.31782612]
[1724313910607,8.2408,2638.3,2638.2,4.31782612]
[1724313910996,8.2408,2638.3,2638.2,3.0]
[1724313911195,8.2408,2638.3,2638.1,3.0]
[1724313912512,8.2408,2638.3,2638.2,1.31774691]
[1724313912849,0.00647189,2638.4,2638.2,5.60974691]
[1724313913145,0.00647189,2638.4,2638.3,1.31774691]
[1724313913290,0.00647189,2638.4,2638.3,4.31774691]
[1724313915823,0.00647189,2638.4,2638.3,3.0]
[1724313916400,0.00647189,2638.4,2638.2,3.26856371]
[1724313916601,0.00647189,2638.4,2638.3,3.0]
[1724313916814,0.00647189,2638.4,2638.2,4.292]
[1724313919964,0.00647189,2638.4,2638.2,6.26861542]
[1724313920706,0.00647189,2638.4,2638.3,1.31768889]
[1724313920906,0.00647189,2638.4,2638.3,3.0]
[1724313921309,0.00647189,2638.4,2638.3,4.31769382]
[1724313926156,0.00647189,2638.4,2638.3,4.31769588]
[1724313927216,0.00647189,2638.4,2638.3,4.31769578]
[1724313927446,0.00647189,2638.4,2638.3,5.15516228]
[1724313927612,0.00647189,2638.4,2638.3,21.81245598]
[1724313927958,0.00647189,2638.4,2638.3,16.83950764]
[1724313928448,0.00647189,2638.4,2638.3,18.02946235]
[1724313928843,0.00647189,2638.4,2638.3,24.42012764]
[1724313929149,0.00062761,2638.4,2638.3,24.84203608]
[1724313929486,0.00062761,2638.4,2638.3,23.26518496]
[1724313929655,0.00062761,2638.4,2638.3,27.05549496]
[1724313929949,15.5938,2639.5,2638.7,8.6248]
[1724313930163,12.31,2639.8,2639.4,1.292]
[1724313930164,8.2938,2639.8,2639.4,1.292]
[1724313930364,8.68980702,2640.0,2639.7,1.292]
[1724313930514,8.2938,2640.0,2639.7,1.292]
[1724313930722,9.12318,2640.0,2639.7,1.292]
[1724313931767,0.0596585,2639.9,2639.7,1.292]
[1724313932468,0.0596585,2639.9,2639.1,12.41394]
[1724313932469,8.9347,2639.8,2639.2,3.0]
[1724313932816,8.5668,2639.6,2639.0,3.0]
[1724313933327,0.05925471,2639.5,2639.0,3.0]
[1724313933579,8.5668,2639.6,2639.0,3.0]
[1724313934665,0.05913098,2639.5,2639.0,3.0]
[1724313934966,0.05913098,2639.5,2639.1,10.11831386]
[1724313935190,0.05913098,2639.5,2639.2,3.0]
[1724313935391,8.3154,2639.8,2639.2,3.0]
[1724313935692,8.3154,2639.8,2639.0,3.0]
[1724313935872,8.3154,2639.6,2639.0,3.0]
[1724313936186,0.05919695,2639.5,2639.0,3.0]
[1724313938937,0.05919695,2639.5,2639.1,8.8989]
[1724313939184,0.05919695,2639.5,2639.2,3.0]
[1724313939386,0.05919695,2639.5,2639.2,4.868818]
[1724313941462,0.05919695,2639.5,2639.2,3.0]
[1724313941659,0.05919695,2639.5,2639.1,3.0]
[1724313942479,0.05919695,2639.5,2639.0,3.0]
[1724313943256,0.89665665,2639.5,2639.0,3.0]
[1724313943612,0.89665665,2639.5,2638.8,3.0]
[1724313945339,8.4407,2639.4,2638.8,3.0]
[1724313945662,8.4407,2639.4,2638.8,3.78958]
[1724313945821,0.05904242,2639.3,2638.9,3.41961305]
[1724313946004,0.05904242,2639.3,2638.9,6.51761305]
[1724313946205,8.4407,2639.4,2638.9,6.51761305]
[1724313946467,8.629,2639.8,2639.0,12.56471]
[1724313946752,0.05905987,2639.7,2639.1,6.78909]
[1724313947119,0.05905987,2639.7,2639.1,3.0]
[1724313951224,6.8162,2639.6,2639.1,3.0]
[1724313951378,0.68752599,2639.5,2638.8,3.0]
[1724313951506,0.05896375,2639.5,2638.8,3.0]
[1724313954424,0.05896375,2639.5,2639.3,1.291]
[1724313958436,6.6828,2639.8,2639.3,1.291]
[1724313958672,0.05893018,2639.7,2639.5,1.291]
[1724313958889,6.6828,2639.8,2639.5,1.291]
[1724313959068,0.05893018,2639.7,2639.5,1.291]
[1724313959275,1.4631032,2639.7,2639.3,1.291]
[1724313959489,1.40417302,2639.7,2639.3,1.291]
[1724313959690,6.5265,2639.5,2639.3,1.291]
[1724313960002,0.05894862,2639.4,2639.3,1.291]
[1724313960163,0.05894862,2639.4,2639.1,1.291]
[1724313961020,0.05894862,2639.4,2638.7,10.35481]
[1724313961021,0.05894862,2639.4,2638.8,3.0]
[1724313961228,0.05894862,2639.4,2638.6,1.291]
[1724313961229,7.0307,2639.3,2638.6,1.291]
[1724313961641,0.05888148,2639.2,2638.6,1.291]
[1724313961843,0.05888148,2639.2,2638.8,1.291]
[1724313962289,7.0307,2639.3,2638.8,1.291]
[1724313962473,0.05888109,2639.1,2638.4,0.41961305]
[1724313962679,0.05888546,2639.2,2638.5,3.0]
[1724313963003,0.05860127,2639.1,2638.4,3.41961305]
[1724313963341,0.05860127,2639.1,2638.4,3.0]
[1724313963882,6.721,2639.0,2638.4,3.0]
[1724313964150,0.05859622,2638.9,2638.4,3.0]
[1724313965298,0.05859622,2638.9,2638.3,3.0]
[1724313966888,0.05859622,2638.9,2638.3,8.81496342]
[1724313967211,0.05859622,2638.9,2638.4,3.79007]
[1724313967414,0.05859622,2638.9,2638.5,3.0]
[1724313967840,0.05859622,2638.9,2638.4,3.0]
[1724313968044,0.90726435,2638.9,2638.4,3.0]
[1724313968288,0.90726435,2638.9,2638.1,3.0]
[1724313968981,7.1466,2638.8,2638.1,3.0]
[1724313969164,7.1466,2638.8,2638.0,3.0]
[1724313969487,0.05844394,2638.7,2638.0,4.74439472]
[1724313970196,0.05844394,2638.7,2638.1,8.88189681]
[1724313970357,0.05844394,2638.7,2638.2,3.0]
[1724313971614,0.05844394,2638.7,2638.2,6.79046]
[1724313971770,0.05844394,2638.7,2638.3,1.63311038]
[1724313972166,7.1466,2638.8,2638.3,1.63311038]
[1724313972362,0.05843957,2638.6,2638.3,1.63311038]
[1724313972576,0.05844394,2638.7,2638.3,1.63311038]
[1724313972772,7.1466,2638.8,2638.3,1.63311038]
[1724313972978,0.05843957,2638.6,2638.3,1.63311038]
[1724313973191,7.3,2639.1,2638.4,0.84235704]
[1724313973192,0.05844394,2638.7,2638.4,0.84235704]
[1724313973509,0.05843957,2638.6,2638.3,1.63311038]
[1724313973712,6.8892,2639.0,2638.3,1.63311038]
[1724313974007,0.0561446,2638.9,2638.3,1.63311038]
[1724313975011,7.0478,2638.8,2638.2,3.0]
[1724313975315,7.0478,2638.8,2638.0,9.42750897]
[1724313975316,0.05613587,2638.7,2638.1,4.97634876]
[1724313975509,0.05613587,2638.7,2638.1,3.0]
[1724313975674,7.0478,2638.6,2637.9,1.97649613]
[1724313976033,7.0478,2638.4,2637.7,6.22387976]
[1724313976225,7.0478,2638.4,2637.8,1.31776863]
[1724313976531,0.05611305,2638.3,2637.8,1.31776863]
[1724313976673,0.05611305,2638.3,2637.7,7.1632111]
[1724313976874,0.05611305,2638.3,2637.7,3.1]
[1724313977071,0.05611305,2638.3,2637.8,4.31778131]
[1724313977377,0.05611305,2638.3,2637.8,3.0]
[1724313978707,0.05611305,2638.3,2637.7,3.0]
[1724313979034,0.05611305,2638.3,2637.5,6.12295603]
[1724313979252,0.05611305,2638.3,2637.6,3.19599574]
[1724313979423,0.05611305,2638.3,2637.6,1.87819303]
[1724313980106,0.05611305,2638.3,2637.6,4.87819303]
[1724313980949,6.5312,2638.2,2637.6,4.45857998]
[1724313981153,0.05595878,2638.1,2637.6,3.0]
[1724313981988,0.05595878,2638.1,2637.5,3.0]
[1724313982202,0.05595878,2638.1,2637.5,6.79145]
[1724313983348,0.05595878,2638.1,2637.5,3.0]
[1724313983638,0.05595878,2638.1,2637.5,4.80056562]
[1724313983838,0.05595878,2638.1,2637.5,8.59200562]
[1724313984003,0.05595878,2638.1,2637.5,4.80056562]
[1724313984709,6.6299,2638.0,2637.5,3.0]
[1724313984891,0.05594299,2637.9,2637.4,3.0545615]
[1724313985095,0.05594299,2637.9,2637.4,4.69789624]
[1724313985299,6.6299,2638.0,2637.4,4.69789624]
[1724313985516,0.05594299,2637.9,2637.4,4.69789624]
[1724313985721,6.6299,2638.0,2637.4,4.69789624]
[1724313985976,0.05593879,2637.9,2637.4,4.69789624]
[1724313986119,6.4889,2637.8,2637.4,3.0545615]
[1724313986316,0.05581949,2637.7,2637.4,0.0545615]
[1724313986524,6.4889,2637.8,2637.4,0.0545615]
[1724313986721,0.05584691,2637.7,2637.4,0.0545615]
[1724313987016,6.4889,2637.8,2637.4,0.0545615]
[1724313987219,0.05584254,2637.6,2637.4,0.0545615]
[1724313987414,6.4889,2637.8,2637.4,0.0545615]
[1724313987623,0.05583818,2637.5,2637.4,0.0545615]
[1724313987937,6.4889,2637.8,2637.4,0.0545615]
[1724313988142,0.05584691,2637.7,2637.4,0.0545615]
[1724313988339,6.4889,2637.8,2637.4,0.0545615]
[1724313988539,0.05584691,2637.7,2637.4,0.0545615]
[1724313988843,6.4889,2637.8,2637.4,0.0545615]
[1724313989219,0.05584691,2637.7,2637.4,0.0545615]
[1724313989780,6.4889,2637.8,2637.4,0.0545615]
[1724313990047,0.05584691,2637.7,2637.4,0.0545615]
[1724313990345,6.4889,2637.8,2637.4,0.0545615]
[1724313990576,0.05584691,2637.7,2637.4,0.0545615]
[1724313990902,6.4889,2637.8,2637.4,0.0545615]
[1724313991117,0.05584481,2637.7,2637.4,0.0545615]
[1724313991449,6.4889,2637.8,2637.4,0.0545615]
[1724313991801,0.05584481,2637.7,2637.4,0.0545615]
[1724313992051,0.05584481,2637.7,2637.4,1.1588137]
[1724313992544,6.4162,2638.0,2637.4,1.1588137]
[1724313992737,6.4162,2638.0,2637.4,0.47417455]
[1724313993224,0.05577804,2637.9,2637.4,0.47417455]
[1724313993424,0.05577804,2637.9,2637.5,10.32204]
[1724313993624,0.05577804,2637.9,2637.6,3.0]
[1724313993839,7.3,2638.2,2637.6,3.0]
[1724313994056,0.05578988,2637.8,2637.6,8.21134732]
[1724313994216,7.3,2638.2,2637.6,8.21134732]
[1724313994417,0.05546199,2637.7,2637.6,8.21134732]
[1724313994680,7.3,2638.2,2637.6,12.00259732]
[1724313994844,0.05546199,2637.7,2637.6,8.21128732]
[1724313995124,0.05545743,2637.7,2637.6,4.42003732]
[1724313995451,6.4162,2637.9,2637.6,3.0]
[1724313995657,0.05545743,2637.7,2637.5,3.0]
[1724313996167,0.05545307,2637.6,2637.5,3.0]
[1724313996543,6.4162,2637.9,2637.4,3.0545615]
[1724313996749,0.0554618,2637.8,2637.4,4.85142865]
[1724314000769,0.0554618,2637.8,2637.4,3.0545615]
[1724314003971,0.0554618,2637.8,2637.4,6.8461015]
[1724314005175,0.0554618,2637.8,2637.4,8.82294594]
[1724314005375,6.4162,2637.9,2637.5,1.31789457]
[1724314005604,0.05548252,2637.8,2637.5,1.31789457]
[1724314005800,0.05548252,2637.8,2637.5,3.10040005]
[1724314006002,6.4162,2637.9,2637.5,3.10040005]
[1724314006003,6.4162,2637.9,2637.6,3.0]
[1724314006323,6.4741,2638.1,2637.6,3.0]
[1724314006521,0.05548252,2637.8,2637.6,3.0]
[1724314006816,6.4741,2638.1,2637.6,4.06052596]
[1724314007175,0.05551822,2638.0,2637.6,4.06052596]
[1724314008593,0.05551822,2638.0,2637.9,1.292]
[1724314010538,0.05551822,2638.0,2637.6,3.0]
[1724314014065,0.05551822,2638.0,2637.6,4.97681643]
[1724314014421,0.05551822,2638.0,2637.6,3.0]
[1724314015514,0.05551822,2638.0,2637.5,3.0]
[1724314016122,6.2871,2637.9,2637.5,3.0]
[1724314016329,6.92136182,2637.9,2637.4,3.4097666]
[1724314016529,0.05550949,2637.8,2637.5,1.31797713]
[1724314016722,0.05550949,2637.8,2637.5,4.31797713]
[1724314017043,0.05550949,2637.8,2637.5,3.0]
[1724314017245,0.05550949,2637.8,2637.4,3.0545615]
[1724314017545,0.05550949,2637.8,2637.5,1.31797595]
[1724314018244,0.05550949,2637.8,2637.5,2.53466955]
[1724314018412,0.05550949,2637.8,2637.6,4.31797595]
[1724314018607,6.2871,2637.9,2637.7,3.0]
[1724314019037,0.05550949,2637.8,2637.6,3.0]
[1724314019242,0.05550949,2637.8,2637.7,1.31787856]
[1724314019446,7.3,2638.2,2637.9,3.79087]
[1724314019607,6.2452,2638.9,2638.1,3.79053]
[1724314019859,6.2452,2638.9,2638.2,1.3176167]
[1724314020060,6.2452,2638.9,2638.2,4.3176167]
[1724314020304,6.2452,2638.9,2638.3,1.3175906]
[1724314020517,6.2452,2638.9,2638.4,4.41948293]
[1724314020716,6.2676,2639.1,2638.7,3.7897]
[1724314020893,6.2676,2639.1,2638.6,4.58235425]
[1724314021065,6.2676,2639.1,2638.7,5.96240546]
[1724314021264,6.2676,2639.1,2638.8,1.31735952]
[1724314021469,6.2676,2639.1,2638.7,3.0]
[1724314021672,6.2676,2639.1,2638.6,3.0]
[1724314022094,6.2676,2639.1,2638.5,3.0]
[1724314022095,6.89436,2639.1,2638.5,3.0]
[1724314022307,6.89436,2639.1,2638.4,3.0]
[1724314022605,6.3639,2639.0,2638.4,3.0]
[1724314022917,6.3639,2639.0,2638.2,3.0]
[1724314023065,6.4963,2638.8,2638.0,3.79248425]
[1724314023261,6.4963,2638.8,2638.1,1.31763859]
[1724314023514,0.05064111,2638.7,2638.1,1.31763859]
[1724314024283,6.0148,2638.6,2638.0,3.0]
[1724314024478,6.67190915,2638.6,2637.9,3.0]
[1724314024691,6.06536504,2638.6,2638.0,1.31772546]
[1724314025718,6.06536504,2638.6,2638.0,2.11020971]
[1724314025917,6.06536504,2638.6,2638.0,3.6223652]
[1724314026088,6.06536504,2638.6,2638.1,3.0]
[1724314026420,6.06536504,2638.6,2637.9,3.0]
[1724314026587,6.06536504,2638.6,2638.0,1.31772476]
[1724314027089,6.06536504,2638.6,2637.9,3.0]
[1724314028298,6.67190154,2638.6,2637.9,3.0]
[1724314028510,6.67190154,2638.6,2637.8,3.0]
[1724314028693,6.67190154,2638.6,2637.7,3.79248425]
[1724314028994,6.67190154,2638.6,2637.8,1.31778574]
[1724314029197,6.67190154,2638.6,2637.8,3.0]
[1724314029422,6.4711,2638.4,2637.8,3.0]
[1724314029725,6.4711,2638.4,2637.7,4.97675612]